[Event "36th Belgrade Trophy 2023"]
[Site "Belgrade"]
[Date "2023.12.03"]
[Round "9.14"]
[White "Garifulin, Yury"]
[Black "Zubova, Mariya"]
[Result "1/2-1/2"]
[ECO "B33"]
[WhiteElo "1956"]
[BlackElo "2157"]
[Annotator "ChessBase"]
[PlyCount "57"]
[EventDate "2023.10.23"]
[EventType "swiss"]
[EventCountry "SRB"]
[SourceTitle "playchess.com"]
[Source "ChessBase"]
[SourceQuality "1"]
[TimeControl "40/5400+30:900+30"]

1. e4 {[%emt 1:31:00]} c5 {[%emt 1:31:00]} 2. Nf3 {[%emt 0:00:00]} Nc6 {[%emt 0:00:00]} 3. d4 {[%emt 0:00:00]} cxd4 {[%emt 0:00:00]} 4. Nxd4 {[%emt 0:00:00]} Nf6 {[%emt 0:00:00]} 5. Nc3 e5 {[%emt 0:02:00]} 6. Ndb5 {[%emt 0:00:00]} d6 {[%emt 0:00:00]} 7. Bg5 {[%emt 0:00:00]} a6 {[%emt 0:00:00]} 8. Na3 b5 {[%emt 0:00:00]} 9. Nd5 Be7 10. Bxf6 {[%emt 0:00:00]} Bxf6 {[%emt 0:00:00]} 11. c3 Rb8 {[%emt 0:00:00]} 12. Nc2 Bg5 {[%emt 0:00:00]} 13. a4 bxa4 {[%emt 0:00:00]} 14. Ncb4 Nxb4 {[%emt 0:04:30]} 15. cxb4 {[%emt 0:00:00]} O-O {[%emt 0:00:00]} 16. Rxa4 a5 {[%emt 0:00:00]} 17. b5 Bd7 {[%emt 0:00:00]} 18. Nc3 d5 {[%emt 0:02:00]} 19. exd5 {[%emt 0:00:00]} e4 {[%emt 0:00:00]} 20. Rxe4 {[%emt 0:00:00]} f5 21. Ra4 {[%emt 0:10:00]} Re8+ {[%emt 0:00:00]} 22. Be2 Bxb5 {[%emt 0:02:00]} 23. Nxb5 {[%emt 0:00:00]} Rxb5 {[%emt 0:00:30]} 24. O-O {[%emt 0:00:00]} Rxb2 {[%emt 0:00:00]} 25. Bc4 {[%emt 0:00:00]} Bd2 {[%emt 0:00:00]} 26. Ra2 {[%emt 0:00:00]} Rxa2 {[%emt 0:00:00]} 27. Bxa2 {[%emt 0:03:00]} Bb4 {[%emt 0:00:00]} 28. Qc2 {[%emt 0:00:00]} Qd7 {[%emt 0:00:00]} 29. Qc6 {[%emt 0:00:15]} 1/2-1/2

[Event "36th Belgrade Trophy 2023"]
[Site "Belgrade"]
[Date "2023.12.03"]
[Round "9.15"]
[White "Savic, Nemanja"]
[Black "Radic, Marko"]
[Result "1-0"]
[ECO "B13"]
[WhiteElo "2136"]
[BlackElo "1620"]
[Annotator "NA"]
[PlyCount "125"]
[EventDate "2023.10.23"]
[EventType "swiss"]
[EventCountry "SRB"]
[SourceTitle "playchess.com"]
[Source "ChessBase"]
[SourceQuality "1"]
[TimeControl "40/5400+30:900+30"]

1. e4 {[%emt 0:00:03]} c6 {[%emt 1:31:00]} 2. d4 {[%emt 1:31:27]} d5 {[%emt 0:00:00]} 3. exd5 {[%emt 0:00:00]} cxd5 {[%emt 0:00:00]} 4. Bd3 {[%emt 0:00:00]} Nc6 {[%emt 0:00:00]} 5. c3 {[%emt 0:00:00]} Nf6 {[%emt 0:00:00]} 6. h3 {[%emt 0:00:00]} g6 {[%emt 0:00:00]} 7. Nf3 {[%emt 0:00:00]} Bf5 {[%emt 0:00:00]} 8. O-O {[%emt 0:00:00]} Bxd3 {[%emt 0:00:00]} 9. Qxd3 {[%emt 0:00:00]} Bg7 {[%emt 0:00:00]} 10. Bf4 {[%emt 0:00:00]} O-O {[%emt 0:00:00]} 11. Nbd2 {[%emt 0:00:00]} Qb6 {[%emt 0:00:00]} 12. a3 {[%emt 0:00:00]} Nd7 {[%emt 0:00:00]} 13. Rfe1 {[%emt 0:00:00]} Rfe8 {[%emt 0:06:00]} 14. Nf1 {[%emt 0:00:00]} Rad8 {[%emt 0:00:00]} 15. Re2 {[%emt 0:00:00]} e5 {[%emt 0:00:00]} 16. dxe5 {[%emt 0:00:00]} Ndxe5 {[%emt 0:00:00]} 17. Nxe5 {[%emt 0:00:00]} Nxe5 {[%emt 0:00:00]} 18. Bxe5 {[%emt 0:00:00]} Rxe5 {[%emt 0:00:00]} 19. Rae1 {[%emt 0:00:00]} Rxe2 {[%emt 0:00:00]} 20. Rxe2 {[%emt 0:00:00]} d4 {[%emt 0:00:00]} 21. c4 {[%emt 0:00:00]} a5 {[%emt 0:00:00]} 22. b3 {[%emt 0:00:00]} Qc5 {[%emt 0:00:00]} 23. a4 {[%emt 0:00:00]} Bh6 {[%emt 0:00:00]} 24. Re4 {[%emt 0:11:00]} f5 {[%emt 0:00:00]} 25. Re1 {[%emt 0:00:00]} Kf7 {[%emt 0:00:00]} 26. Rd1 {[%emt 0:00:00]} Qe5 {[%emt 0:00:00]} 27. Nh2 {[%emt 0:00:00]} Qe4 {[%emt 0:00:00]} 28. Nf3 {[%emt 0:00:00]} Qxd3 {[%emt 0:00:00]} 29. Ne5+ {[%emt 0:00:00]} Ke6 {[%emt 0:00:00]} 30. Nxd3 {[%emt 0:00:00]} b6 {[%emt 0:00:00]} 31. Re1+ {[%emt 0:00:00]} Kd6 {[%emt 0:00:00]} 32. Kf1 {[%emt 0:00:00]} Bg7 {[%emt 0:00:00]} 33. Nf4 {[%emt 0:04:30]} Be5 {[%emt 0:00:00]} 34. Nd5 {[%emt 0:00:00]} Rb8 {[%emt 0:00:00]} 35. f4 {[%emt 0:00:00]} Bh8 {[%emt 0:00:00]} 36. Re7 {[%emt 0:01:30]} h5 {[%emt 0:11:30]} 37. Ke2 {[%emt 0:00:30]} Bf6 {[%emt 0:00:00]} 38. Rh7 {[%emt 0:00:00]} Re8+ {[%emt 0:00:00]} 39. Kd3 {[%emt 0:00:00]} Bd8 {[%emt 0:00:00]} 40. Rg7 {[%emt 0:00:00]} Re6 {[%emt 0:00:00]} 41. Rg8 {[%emt 0:00:00]} Kd7 {[%emt 0:00:00]} 42. Kxd4 {[%emt 0:00:00]} Re4+ {[%emt 0:00:00]} 43. Kd3 {[%emt 0:00:00]} Re6 {[%emt 0:00:00]} 44. Rg7+ {[%emt 0:00:00]} Kc6 {[%emt 0:00:00]} 45. Rg8 {[%emt 0:00:00]} Kd7 {[%emt 0:00:00]} 46. Ne3 {[%emt 0:00:00]} Bc7 {[%emt 0:00:00]} 47. Nd5 {[%emt 0:00:00]} Bd8 {[%emt 0:00:00]} 48. g3 h4 {[%emt 0:00:00]} 49. g4 {[%emt 0:00:00]} fxg4 {[%emt 0:00:00]} 50. hxg4 {[%emt 0:00:00]} Re1 {[%emt 0:00:00]} 51. Rg7+ {[%emt 0:00:00]} Kc8 {[%emt 0:00:00]} 52. Rxg6 {[%emt 0:00:00]} h3 {[%emt 0:00:00]} 53. Rh6 {[%emt 0:00:00]} Rh1 {[%emt 0:00:00]} 54. Ke4 {[%emt 0:00:00]} h2 {[%emt 0:00:00]} 55. Kf5 {[%emt 0:00:00]} Kd7 {[%emt 0:00:00]} 56. Nf6+ {[%emt 0:00:00]} Bxf6 {[%emt 0:00:00]} 57. Kxf6 {[%emt 0:00:00]} Rg1 {[%emt 0:00:00]} 58. Rxh2 {[%emt 0:00:00]} Rxg4 {[%emt 0:00:00]} 59. f5 {[%emt 0:00:00]} Rf4 {[%emt 0:00:00]} 60. Rh3 {[%emt 0:00:00]} Rg4 {[%emt 0:00:00]} 61. Rd3+ {[%emt 0:00:00]} Ke8 {[%emt 0:00:00]} 62. Rd6 {[%emt 0:00:12]} Rh4 {[%emt 0:00:00]} 63. Ke5 {[%emt 0:27:48]} 1-0